Cogmind - Beta 11 X6 @@@ ROGUE MODE // 2021.08.07 @ 22:42:00 Player: Plexion Result: Destroyed by D-53 Grenadier with Mini Grenade Launcher Performance ------------- Evolutions (0) 0 Regions Visited (2) 400 Robots Destroyed (22) 110 Value Destroyed (368) 368 Prototype IDs (0) 0 Alien Tech Used (0) 0 Bonus (0) 0 TOTAL SCORE: 878 Bonus ------- None Cogmind --------- Core Integrity 0/250 Matter 300/300 Energy 248/250 System Corruption 0% Temperature Cool (1) Movement Treading (260) Ox1 Location -10/Mines Parts ------- > --- POWER (1) -------- Ion Engine > --- PROPULSION (2) --- Light Treads > --- UTILITY (2) ------ Large Storage Unit Terrain Scanner > --- WEAPON (2) ------- Autogun > --- INVENTORY (15) --- Light Ion Engine Light Treads Improved Aluminum Leg Improved Aluminum Leg Improved Aluminum Leg Large Storage Unit Armor Integrity Analyzer EM Pulse Gun EM Pulse Gun Light Assault Rifle Autogun Autogun Peak State ------------ > --- POWER ------------ Light Ion Engine > --- PROPULSION ------- Light Treads Light Treads > --- UTILITY ---------- Small Storage Unit Medium Storage Unit > --- WEAPON ----------- Autogun Autogun > --- INVENTORY -------- Improved Aluminum Leg Improved Aluminum Leg Improved Aluminum Leg Armor Integrity Analyzer EM Pulse Gun EM Pulse Gun Autogun Autogun [Rating: 10] Favorites ----------- Power Light Ion Engine Engine Light Ion Engine Propulsion Light Treads Treads Light Treads Leg Aluminum Leg Utility Small Storage Unit Device Terrain Scanner Storage Small Storage Unit Weapon EM Pulse Gun Energy Gun EM Pulse Gun Ballistic Gun Autogun Build | -11 -10 -10 ------- Run | Scr Mat Min Slots Evolved . | . . . Power . | . . . Propulsion . | . . . Utility . | . . . Weapon . | . . . Parts Attached 23 | 8 15 . Power 4 | 1 3 . Engine 4 | 1 3 . Core . | . . . Reactor . | . . . Propulsion 5 | 4 1 . Treads 3 | 2 1 . Leg 2 | 2 . . Wheel . | . . . Hover . | . . . Flight . | . . . Utility 4 | 1 3 . Device 1 | . 1 . Storage 3 | 1 2 . Processor . | . . . Hackware . | . . . Protection . | . . . Artifact . | . . . Weapon 10 | 2 8 . Energy Gun 6 | 2 4 . Energy Cannon . | . . . Ballistic Gun 4 | . 4 . Ballistic Cannon . | . . . Launcher . | . . . Special Weapon . | . . . Impact Weapon . | . . . Slashing Weapon . | . . . Piercing Weapon . | . . . Special Melee Weapon . | . . . Unidentified Prototypes . | . . . Parts Lost 4 | . 2 2 Power 2 | . 2 . Propulsion 1 | . . 1 Utility . | . . . Weapon 1 | . . 1 Highest Loss Streak 2 | . 2 2 Average Slot Usage (%) 88 | . 84 98 Engine 13 | . 13 14 Treads 27 | . 28 27 Device 4 | . . 14 Storage 14 | . 14 14 Energy Gun 17 | . 24 . Ballistic Gun 10 | . 3 27 Naked Turns . | . . . Heaviest Build 32 | 12 32 32 Greatest Support 40 | 40 40 40 Greatest Overweight (x) 1 | . . 1 Average Overweight (x) . | . . . Largest Inventory Capacity 15 | 8 15 15 Average Capacity 10 | 6 9 15 Most Carried 12 | 4 12 12 Average Carried 7 | 2 6 12 Final Capacity 15 | 8 15 15 Final Carried 12 | 4 12 12 Class Distribution -------------------- 100% | Mutant Dominant Class ---------------- Mutant | -10/Materials Mutant | -10/Mines Resources | -11 -10 -10 ----------- Run | Scr Mat Min Matter Collected 612 | 222 151 239 Remotely . | . . . Salvage Created 826 | 12 572 242 Parts 57 | 2 40 15 Haulers Intercepted 2 | . 2 . Recyclers Shooed . | . . . Parts Field Recycled . | . . . Retrieved Matter . | . . . Parts Self-Destructed . | . . . Prevented . | . . . Kills | -11 -10 -10 ------- Run | Scr Mat Min Combat Hostiles Destroyed 12 | . 10 2 Guns 11 | . 9 2 AOE 1 | . 1 . Classes Destroyed 7 | 1 5 1 Worker 1 | 1 . . Tunneler 1 | . . 1 Hauler 2 | . 2 . Recycler 4 | . 2 2 Watcher 2 | . 2 . Swarmer 6 | . 6 . Grunt 6 | . 4 2 Best Kill Streak 4 | 1 4 3 Combat Bots Only 3 | . 3 2 Max Kills in Single Turn 2 | 1 2 1 Gunslinging . | . . . Exploded 1 | . 1 . Melee . | . . . Uniques/NPCs Destroyed . | . . . Combat | -11 -10 -10 -------- Run | Scr Mat Min Damage Taken 994 | . 478 516 Core 259 | . 52 207 Absorbed by Shields . | . . . Core Remaining (%) 100 | 100 . . Volleys Fired 46 | 1 31 14 Largest 2 | 2 2 2 Hottest 80 | 80 80 46 Shots Fired 92 | 2 62 28 Gun 92 | 2 62 28 Cannon . | . . . Launcher . | . . . Special . | . . . Kinetic 48 | . 20 28 Thermal . | . . . Explosive . | . . . Electromagnetic 44 | 2 42 . Robot Hit Streak 6 | 1 6 6 Robot Miss Streak 4 | . 4 2 Penetration Max . | . . . Secondary Targets 1 | . . 1 Max Gunslinging Chain 1 | . . 1 Shots Hit Robots 53 | 1 35 17 Core Hits 30 | 1 22 7 Critical Kills . | . . . Critical Parts Destroyed . | . . . Critical Strikes . | . . . Melee Attacks . | . . . Impact . | . . . Slashing . | . . . Piercing . | . . . Sneak Attacks . | . . . Combat Hostiles . | . . . Follow-up Attacks . | . . . Damage Inflicted 1001 | 13 751 237 Guns 758 | 13 508 237 Cannons . | . . . Explosions 243 | . 243 . Melee . | . . . Ramming . | . . . Kinetic 426 | . 189 237 Thermal 243 | . 243 . Explosive . | . . . Electromagnetic 332 | 13 319 . Impact . | . . . Slashing . | . . . Piercing . | . . . Highest Corruption . | . . . Average Corruption . | . . . Corruption Purged . | . . . Overload Shots . | . . . Overflow Damage 7 | . 7 . Projectiles . | . . . Explosions 7 | . 7 . Melee . | . . . Knockbacks . | . . . Impact . | . . . Kinetic . | . . . Secondary . | . . . Self-Inflicted Damage 88 | . 88 . Shots 2 | . 2 . Rammed . | . . . Targets Rammed . | . . . Kicked . | . . . Crushed . | . . . Highest Temperature 207 | 18 207 22 Average Temperature 45 | 12 57 8 Received Heat Transfer 213 | . 177 36 Siege Activations . | . . . Robots Corrupted . | . . . Combat Hostiles . | . . . Parts Fried 1 | . 1 . Impact Corruptions . | . . . Robots Melted . | . . . Combat Hostiles . | . . . Parts Melted . | . . . Heat Transferred 350 | . 350 . Parts Sabotaged . | . . . Parts Stolen . | . . . Parts Stripped . | . . . Power Chain Reactions 2 | . 2 . Missiles Intercepted . | . . . Alert | -11 -10 -10 ------- Run | Scr Mat Min Peak Influence 195 | 5 195 103 Initial 38 | . 3 38 Average 61 | . 62 75 Maximum Alert Level . | . . . Low Security (%) 100 | 100 100 100 Level 1 . | . . . Level 2 . | . . . Level 3 . | . . . Level 4 . | . . . Level 5 . | . . . High Security . | . . . Max Security . | . . . Squads Dispatched 1 | . 1 . Investigation 1 | . 1 . Extermination . | . . . Reinforcement . | . . . Assault . | . . . Garrison . | . . . Intercept . | . . . Construction Impeded . | . . . Haulers Reinforced . | . . . Active Scanning Responses . | . . . Cargo Convoy Interrupts . | . . . Stealth | -11 -10 -10 --------- Run | Scr Mat Min Distress Signals 2 | . 2 . Communications Jammed . | . . . Distress Signals . | . . . Times Spotted 25 | . 21 4 Peak Tracking Total 4 | . 4 2 Tactical Retreats 1 | . 1 . Traps | -11 -10 -10 ------- Run | Scr Mat Min Traps Triggered 1 | . 1 . Indirectly . | . . . Trap Hack Attempts . | . . . Triggered . | . . . Disarmed . | . . . Reprogrammed . | . . . Reused . | . . . Traps Extracted . | . . . Installed . | . . . Triggered . | . . . Machines | -11 -10 -10 ---------- Run | Scr Mat Min Machines Disabled 2 | . 2 . Max in Single Turn 1 | . 1 . Machines Sabotaged . | . . . Garrisons Compromised . | . . . Overloaded Fab Kills . | . . . Fab Network Shutdowns . | . . . Hacking | -11 -10 -10 --------- Run | Scr Mat Min Machines Accessed 8 | . 8 . Terminals 8 | . 8 . Fabricators . | . . . Repair Stations . | . . . Recycling Units . | . . . Scanalyzers . | . . . Garrison Access . | . . . Total Hacks 22 | . 22 . Successful 7 | . 7 . Failed 15 | . 15 . Catastrophic 1 | . 1 . Database Lockouts . | . . . Manual 22 | . 22 . Terminals 22 | . 22 . Fabricators . | . . . Repair Stations . | . . . Recycling Units . | . . . Scanalyzers . | . . . Garrison Access . | . . . Terminal Hacks 4 | . 4 . Part Schematic 1 | . 1 . Robot Analysis 1 | . 1 . Zone Layout 2 | . 2 . Fabricator Hacks . | . . . Repair Station Hacks . | . . . Recycling Unit Hacks . | . . . Scanalyzer . | . . . Garrison Access Hacks . | . . . Unauthorized Hacks 3 | . 3 . Terminals 3 | . 3 . Track 3 | . 3 . Fabricators . | . . . Repair Stations . | . . . Recycling Units . | . . . Scanalyzers . | . . . Garrison Access . | . . . Data Cores Recovered . | . . . Used . | . . . Hacking Detections 6 | . 6 . Full Trace Events . | . . . Feedback Events . | . . . Feedback Blocked . | . . . Robot Schematics Acquired . | . . . Robots Built . | . . . Matter . | . . . Time . | . . . Total Robot Build Rating . | . . . Part Schematics Acquired 1 | . 1 . Parts Built . | . . . Matter . | . . . Time . | . . . Total Part Build Rating . | . . . Parts Repaired . | . . . Time . | . . . Parts Recycled . | . . . Recycled Matter . | . . . Retrieved Matter . | . . . Retrieved Components . | . . . Parts Scanalyzed . | . . . Part Schematics Acquired . | . . . Parts Damaged . | . . . Bothacking | -11 -10 -10 ------------ Run | Scr Mat Min Used RIF Installer . | . . . Robots Hacked . | . . . Non-combat . | . . . Combat . | . . . Robot Hacks Applied . | . . . Relay Couplers Released . | . . . Robots Rewired . | . . . Allies Hacked . | . . . Hacks Repelled . | . . . Allies | -11 -10 -10 -------- Run | Scr Mat Min Total Allies . | . . . Largest Group . | . . . Highest-Rated Group . | . . . Highest-Rated Ally . | . . . Total Orders . | . . . Ally Attacks . | . . . Total Damage . | . . . Kills . | . . . Allies Corrupted . | . . . Allies Melted . | . . . Intel | -11 -10 -10 ------- Run | Scr Mat Min Robot Analysis Total 1 | . 1 . Derelict Logs Recovered 1 | . . 1 Drone Launches . | . . . Drone Recoveries . | . . . Exploration | -11 -10 -10 ------------- Run | Scr Mat Min Turns Passed 1599 | 105 1070 424 Spaces Moved 888 | 64 584 240 Core 10 | 10 . . Treads 871 | 47 584 240 Legs 7 | 7 . . Wheels . | . . . Hover . | . . . Flight . | . . . Fastest Speed 50 | 50 160 160 Average Speed 159 | 138 160 162 Slowest Speed 260 | 160 160 260 Overloaded Moves . | . . . Propulsion Burnouts . | . . . Robots Hopped . | . . . Cave-ins Triggered . | . . . Exploration Rate (%) 49 | 5 92 52 Regions Visited 2 Branch Regions 1 Pre-discovered Areas . | . . . Known Exits Taken . | . . . Unknown Exits Taken 2 | 1 1 . Scrap Searched 1 | . . 1 Spaces Dug . | . . . Terrain Destroyed 8 | . 8 . Melee . | . . . Projectile . | . . . AOE 8 | . 8 . Terrain Rammed . | . . . Walls Destroyed . | . . . Machines Disabled . | . . . Actions | -11 -10 -10 --------- Run | Scr Mat Min Total 993 | 76 663 254 Wait 11 | . 11 . Move 886 | 63 583 240 Hop . | . . . Pick Up 14 | 2 12 . Fast Attach 12 | 8 4 . Attach 3 | . 3 . Detach 6 | 2 4 . Swap 8 | . 8 . Drop 7 | . 7 . Fire 46 | 1 31 14 Melee . | . . . Ram . | . . . Kick . | . . . Crush . | . . . Escape Stasis . | . . . Rewire . | . . . Trap . | . . . Miscellaneous . | . . . Route ------- -11/Scrapyard -10/Materials (discovered 5 exits: [*Mat x3] / [*Min x2]) -10/Mines (discovered 2 exits: [*Mat] / [*Exi]) History --------- Turn | Location | Event 3 | -11/Scrapyard | Discovered new exit (range 15) 106 | -11/Scrapyard | Entered Materials 267 | -10/Materials | Discovered new exit (range 14) 270 | -10/Materials | Discovered new exit (range 8) 316 | -10/Materials | Build established: Mutant 525 | -10/Materials | Discovered new exit (range 15) 681 | -10/Materials | Discovered new exit (range 17) 1024 | -10/Materials | Discovered new exit (range 10) 1176 | -10/Materials | Entered Mines 1208 | -10/Mines | Discovered new exit (range 16) 1458 | -10/Mines | Learned Materials stockpile data 1558 | -10/Mines | Assembled infested the area 1591 | -10/Mines | Discovered new exit (range 6) 1597 | -10/Mines | Core integrity fell below 50% 1600 | -10/Mines | Destroyed by D-53 Grenadier with Mini Grenade Launcher Last Messages --------------- 01458_ Acquired derelict log, extracted data. Data stored: Materials stockpile data. 01503_ T-07 Excavator destroyed. 01506_ Acquired 18 matter. 01522_ Searching scrap... 01522_ Found Tractor Beam. 01522_ Found 32 Matter. 01522_ K-01 Serf collects debris. 01527_ A derelict is hurriedly installing traps. 01529_ G8-LI4(g): "Hehe, this'll put a wrench in their mining defense operations..." 01529_ G8-LI4(g) slips into the shadows. 01558_ ALERT: Infestation in the mines, dispatching Demolisher response squad. 01585_ C-30 ARC bursts open, deploying its payload. 01585_ D-53 Grenadier unfolds itself. 01587_ Lgt. Treads destroyed. 01591_ EXIT=FOUND 01592_ The unstable cave ceiling collapses. 01598_ Autogun destroyed. Map ----- +----------------------------------------------------+ | | | | | | | | | ????????????????????????????????? | | ????????????????????????????????? | | ????????????????????????????????? | | ??????????#?????????????????????? | | ???????????#????????#???????????? | | ????????????????#??????????????#? | | ?????????????#??????#???#######?? | | ?????###########???????## ##? | | ?????? ^ #??????## #? | | ???#???^ # #??##### #? | | ????# # # #####% ## | | ???????# ^ !### | | ?#??# #^## ##### #??# ### | | ????# #???# #### #? | | ????# ##### #? | | ????####### ## #### ##? | | ??????????# ## ##### #??## ###?? | | ????####### #### #???####???? | | ?#?## ## # ## #??????#???# | | ?#?## #=#??#?#??#??? | | ?#?# d #%#??#?#?????? | | ????# <@ d *!#####??????? | | ???# # #| "%"###???? | | ???## ###### #??????? | | ????# ##????# ###??? ? | | ????## ##????## ##????? | | ?????## ##????## #???? | | ??????## ############# #????? | | ??????# ## ##????? | | ???#??# ### ###### ## #?????? | | ??????# #?# ###??# ## #?????? | | ??????# #?# ##?# ## #?????? | | ??????# #?### #??# ### #??#??? | | ??????# ##??# ##?# #?### #?????? | | #????## #??# ##?# #??## #?????? | | ????## #### ### ##### #?????? | | ???## ## ## #?????? | | ??## ######## ##????? | | ??# ####### #?????? | | ??# #?????? | | ??# ## #?????? | | ??## ##### ######## ##?????? | | ???####????## ###???#??# #????? ? | | ????????????# #????????# #??????? | | ??##????????# #####???## ??????? | | ???#??#????## #????###??????? | +----------------------------------------------------+ Best States ------------- Heat Dissipation 25 Energy Generation 10 Energy Capacity 250 Matter Stores 300 Matter Capacity 300 Sight Range 16 Terrain Scan Range 14 Terrain Scan Density 10 Evasion (%) 50 Recoil Reduction 2 Item Schematics ----------------- Lrg. Storage Unit | -10/Materials | Hacked Robot Schematics ------------------ None Fabricated ------------ Nothing Alien Tech Used ----------------- None Achievements -------------- None Challenges ------------ None Game ------ Seed SuperchargedMolecularFlail Manual? 0 Play Time 00:08:17 Cumulative 212.0 hours Start 2021.08.07 @ 22:34:43 End 2021.08.07 @ 22:42:00 Sessions 1 Manual Loads 0 Difficulty Rogue Special Mode None Game No. 278 Rogue 191 Adventurer 87 Explorer 0 Win Type - Total 4 Types 3/0/0/1/0/0/0/0/0 Lore% 68 Gallery% 76 Achievement% 62 Wizard Run 0 Options --------- ASCII 0 Keyboard 1 Movement Numpad Keybinds 0 Fullscreen 1 Font 18/Smallcaps Map View 76x50 Tactical HUD 1 Map Filters NONE Filters NONE Steam 1 RUN: 23890e35-4366-4c40-9544-9f1ff11f4b4e